[Event "Live Chess"]
[Site "Chess.com"]
[Date "2010.12.29"]
[Round "-"]
[White "hipposcottimus"]
[Black "kidvegemite"]
[Result "0-1"]
[CurrentPosition "1r1r3k/6p1/p1p2p1p/5P2/q1P1p3/4Q3/1N4PP/4R1K1 b - -"]
[Timezone "UTC"]
[ECO "C41"]
[ECOUrl "https://www.chess.com/openings/Philidor-Defense-Exchange-Variation-4.Nxd4"]
[UTCDate "2010.12.29"]
[UTCTime "23:34:42"]
[WhiteElo "1386"]
[BlackElo "1405"]
[TimeControl "720"]
[Termination "kidvegemite won by resignation"]
[StartTime "23:34:42"]
[EndDate "2010.12.29"]
[EndTime "23:52:37"]
[Link "https://www.chess.com/game/live/82337397"]

1. e4 {[%clk 0:12:00]} 1... e5 {[%clk 0:12:00]} 2. Nf3 {[%clk 0:11:56.8]} 2... d6 {[%clk 0:11:58.5]} 3. d4 {[%clk 0:11:39.8]} 3... exd4 {[%clk 0:11:55.2]} 4. Nxd4 {[%clk 0:11:35.3]} 4... Bd7 {[%clk 0:11:53.8]} 5. Nc3 {[%clk 0:11:17.6]} 5... Nc6 {[%clk 0:11:52.4]} 6. Be3 {[%clk 0:11:13.7]} 6... Be7 {[%clk 0:11:49.8]} 7. Bb5 {[%clk 0:10:56.8]} 7... a6 {[%clk 0:11:47.9]} 8. Nxc6 {[%clk 0:10:51.7]} 8... Bxc6 {[%clk 0:11:43.8]} 9. Bxc6+ {[%clk 0:10:49.2]} 9... bxc6 {[%clk 0:11:42.3]} 10. Bd4 {[%clk 0:10:39]} 10... Bf6 {[%clk 0:11:36.4]} 11. O-O {[%clk 0:10:32.3]} 11... Bxd4 {[%clk 0:11:28.6]} 12. Qxd4 {[%clk 0:10:28.2]} 12... Qf6 {[%clk 0:11:26.5]} 13. Qb4 {[%clk 0:10:05.2]} 13... Qd8 {[%clk 0:11:11.2]} 14. b3 {[%clk 0:09:58.8]} 14... Ne7 {[%clk 0:10:39.2]} 15. f4 {[%clk 0:09:48.8]} 15... O-O {[%clk 0:10:36.2]} 16. f5 {[%clk 0:09:45.9]} 16... f6 {[%clk 0:10:12.6]} 17. Qc4+ {[%clk 0:09:33.6]} 17... Kh8 {[%clk 0:10:02.8]} 18. Qd3 {[%clk 0:09:23.1]} 18... c5 {[%clk 0:09:48]} 19. Rae1 {[%clk 0:08:53]} 19... Nc6 {[%clk 0:09:45.7]} 20. Nd5 {[%clk 0:08:39.8]} 20... Ne5 {[%clk 0:09:38.6]} 21. Qh3 {[%clk 0:08:07.2]} 21... c6 {[%clk 0:09:23.9]} 22. Ne3 {[%clk 0:07:53.3]} 22... Qa5 {[%clk 0:09:07]} 23. a4 {[%clk 0:07:37.2]} 23... Qc3 {[%clk 0:09:01.3]} 24. Qg3 {[%clk 0:06:31.3]} 24... Rad8 {[%clk 0:07:38.6]} 25. Qf2 {[%clk 0:06:25.5]} 25... d5 {[%clk 0:07:24.2]} 26. Nd1 {[%clk 0:06:18.5]} 26... Qb4 {[%clk 0:07:11.8]} 27. c3 {[%clk 0:05:32]} 27... Qxb3 {[%clk 0:07:09]} 28. Qxc5 {[%clk 0:05:30.1]} 28... Nd3 {[%clk 0:06:53.6]} 29. Qd4 {[%clk 0:04:42.9]} 29... Nxe1 {[%clk 0:06:43.9]} 30. Rxe1 {[%clk 0:04:38.5]} 30... Rb8 {[%clk 0:06:07]} 31. Re3 {[%clk 0:04:19]} 31... dxe4 {[%clk 0:05:35.9]} 32. c4 {[%clk 0:04:07.5]} 32... Qxa4 {[%clk 0:05:20.8]} 33. Re1 {[%clk 0:02:31.6]} 33... h6 {[%clk 0:04:31.3]} 34. Qe3 {[%clk 0:02:14]} 34... Rfd8 {[%clk 0:04:16.2]} 35. Nb2 {[%clk 0:02:06.3]} 0-1

[Event "Live Chess"]
[Site "Chess.com"]
[Date "2010.12.29"]
[Round "-"]
[White "kidvegemite"]
[Black "hipposcottimus"]
[Result "0-1"]
[CurrentPosition "1r4k1/p5pp/3qp3/5pN1/3PnP2/4P3/1P1B2PP/2R3K1 w - -"]
[Timezone "UTC"]
[ECO "D00"]
[ECOUrl "https://www.chess.com/openings/Queens-Pawn-Opening-1...d5-2.e3-c5"]
[UTCDate "2010.12.29"]
[UTCTime "23:19:01"]
[WhiteElo "1345"]
[BlackElo "1395"]
[TimeControl "720"]
[Termination "hipposcottimus won by resignation"]
[StartTime "23:19:01"]
[EndDate "2010.12.29"]
[EndTime "23:32:35"]
[Link "https://www.chess.com/game/live/82333593"]

1. d4 {[%clk 0:12:00]} 1... d5 {[%clk 0:12:00]} 2. e3 {[%clk 0:11:58.4]} 2... c5 {[%clk 0:11:56.4]} 3. c3 {[%clk 0:11:52.6]} 3... cxd4 {[%clk 0:11:51.6]} 4. cxd4 {[%clk 0:11:48.3]} 4... e6 {[%clk 0:11:41.6]} 5. Nc3 {[%clk 0:11:43]} 5... Nf6 {[%clk 0:11:31.4]} 6. f4 {[%clk 0:11:29]} 6... Qa5 {[%clk 0:11:25.4]} 7. Bd2 {[%clk 0:11:10.1]} 7... Bd6 {[%clk 0:11:06.5]} 8. Nf3 {[%clk 0:11:05.4]} 8... O-O {[%clk 0:10:25.9]} 9. Nb5 {[%clk 0:10:39.6]} 9... Qb6 {[%clk 0:10:16]} 10. Nxd6 {[%clk 0:10:29.8]} 10... Qxd6 {[%clk 0:10:13.8]} 11. Bd3 {[%clk 0:10:23.9]} 11... Nfd7 {[%clk 0:09:56.2]} 12. a3 {[%clk 0:10:21.3]} 12... Re8 {[%clk 0:09:46.4]} 13. O-O {[%clk 0:10:11.7]} 13... f6 {[%clk 0:09:42.2]} 14. Qc2 {[%clk 0:09:58.5]} 14... f5 {[%clk 0:09:27.6]} 15. Ng5 {[%clk 0:09:42.2]} 15... b6 {[%clk 0:08:15.7]} 16. Qd1 {[%clk 0:09:32.8]} 16... Ba6 {[%clk 0:07:50.8]} 17. Bxa6 {[%clk 0:09:20]} 17... Nxa6 {[%clk 0:07:47.2]} 18. Qh5 {[%clk 0:09:18.1]} 18... Nf6 {[%clk 0:07:44.1]} 19. Qh4 {[%clk 0:08:10.7]} 19... Rac8 {[%clk 0:07:30.2]} 20. Rfc1 {[%clk 0:07:59.3]} 20... Rc4 {[%clk 0:07:15.8]} 21. Rc3 {[%clk 0:07:37.3]} 21... b5 {[%clk 0:07:09.1]} 22. Rac1 {[%clk 0:07:18.1]} 22... b4 {[%clk 0:07:00.8]} 23. Rxc4 {[%clk 0:06:56.8]} 23... dxc4 {[%clk 0:06:54.6]} 24. axb4 {[%clk 0:06:33.6]} 24... Nxb4 {[%clk 0:06:50.6]} 25. Rxc4 {[%clk 0:06:18.5]} 25... Rb8 {[%clk 0:06:26.5]} 26. Qe1 {[%clk 0:05:48.9]} 26... Nd3 {[%clk 0:06:14.5]} 27. Qc1 {[%clk 0:05:02]} 27... Nxc1 {[%clk 0:06:01.2]} 28. Rxc1 {[%clk 0:04:48.8]} 28... Ne4 {[%clk 0:05:51.3]} 0-1

[Event "Live Chess"]
[Site "Chess.com"]
[Date "2010.12.29"]
[Round "-"]
[White "sakkbela"]
[Black "hipposcottimus"]
[Result "0-1"]
[CurrentPosition "r5k1/ppp3pp/8/3p3P/5r1q/1P1P3b/P1PK2P1/8 w - -"]
[Timezone "UTC"]
[ECO "C20"]
[ECOUrl "https://www.chess.com/openings/Kings-Pawn-Opening-Leonardis-Variation-2...Nf6-3.f4"]
[UTCDate "2010.12.29"]
[UTCTime "23:11:22"]
[WhiteElo "1106"]
[BlackElo "1387"]
[TimeControl "240+4"]
[Termination "hipposcottimus won by resignation"]
[StartTime "23:11:22"]
[EndDate "2010.12.29"]
[EndTime "23:17:31"]
[Link "https://www.chess.com/game/live/82331741"]

1. e4 {[%clk 0:04:00]} 1... e5 {[%clk 0:04:00]} 2. d3 {[%clk 0:04:01]} 2... Nf6 {[%clk 0:03:59.9]} 3. f4 {[%clk 0:04:03.6]} 3... exf4 {[%clk 0:03:48.5]} 4. Bxf4 {[%clk 0:04:05.5]} 4... d6 {[%clk 0:03:50.4]} 5. Qe2 {[%clk 0:03:59.8]} 5... Nc6 {[%clk 0:03:48.2]} 6. Nc3 {[%clk 0:03:54]} 6... Nd4 {[%clk 0:03:39.5]} 7. Qd2 {[%clk 0:03:41.9]} 7... Be7 {[%clk 0:03:33.4]} 8. O-O-O {[%clk 0:03:28.3]} 8... Be6 {[%clk 0:03:29.7]} 9. b3 {[%clk 0:03:27]} 9... O-O {[%clk 0:03:26.7]} 10. h4 {[%clk 0:03:15.3]} 10... d5 {[%clk 0:03:24.2]} 11. e5 {[%clk 0:03:12.5]} 11... Nh5 {[%clk 0:03:20.3]} 12. Be2 {[%clk 0:03:01.3]} 12... Nxf4 {[%clk 0:03:21]} 13. Qxf4 {[%clk 0:03:02.2]} 13... Nxe2+ {[%clk 0:03:22.4]} 14. Ncxe2 {[%clk 0:03:03.3]} 14... f6 {[%clk 0:03:22.5]} 15. Rf1 {[%clk 0:02:36.6]} 15... fxe5 {[%clk 0:03:18.3]} 16. Qxe5 {[%clk 0:02:39.4]} 16... Rxf1+ {[%clk 0:03:18.5]} 17. Kd2 {[%clk 0:02:42.5]} 17... Bg4 {[%clk 0:02:59.1]} 18. h5 {[%clk 0:02:25.2]} 18... Bg5+ {[%clk 0:02:39.1]} 19. Nf4 {[%clk 0:02:21.5]} 19... Bxf4+ {[%clk 0:02:38.4]} 20. Qxf4 {[%clk 0:02:15.6]} 20... Rxf4 {[%clk 0:02:38.4]} 21. Rh4 {[%clk 0:02:17.6]} 21... Qxh4 {[%clk 0:02:38.3]} 22. Nh3 {[%clk 0:02:19.5]} 22... Bxh3 {[%clk 0:02:39]} 0-1

[Event "Live Chess"]
[Site "Chess.com"]
[Date "2010.12.29"]
[Round "-"]
[White "hipposcottimus"]
[Black "sakkbela"]
[Result "0-1"]
[CurrentPosition "B3k2r/p1pb1ppp/3bp3/3N4/3P4/8/PPP2PPq/R1BQ1RK1 w kq -"]
[Timezone "UTC"]
[ECO "B01"]
[ECOUrl "https://www.chess.com/openings/Scandinavian-Defense-Mieses-Kotrc-Variation-3.Nc3-Qd8-4.d4"]
[UTCDate "2010.12.29"]
[UTCTime "23:08:13"]
[WhiteElo "1384"]
[BlackElo "1109"]
[TimeControl "240+4"]
[Termination "sakkbela won by checkmate"]
[StartTime "23:08:13"]
[EndDate "2010.12.29"]
[EndTime "23:10:53"]
[Link "https://www.chess.com/game/live/82331049"]

1. e4 {[%clk 0:04:00]} 1... d5 {[%clk 0:04:00]} 2. exd5 {[%clk 0:04:01.1]} 2... Qxd5 {[%clk 0:04:00.7]} 3. Nc3 {[%clk 0:04:03.8]} 3... Qd8 {[%clk 0:04:00.2]} 4. d4 {[%clk 0:04:05.4]} 4... e6 {[%clk 0:03:59.8]} 5. Nf3 {[%clk 0:04:03.1]} 5... Nc6 {[%clk 0:03:52.6]} 6. Bb5 {[%clk 0:04:04.1]} 6... Ne7 {[%clk 0:03:35.8]} 7. O-O {[%clk 0:03:48.5]} 7... Nd5 {[%clk 0:03:32.1]} 8. Ne5 {[%clk 0:03:40.7]} 8... Bd6 {[%clk 0:03:24.8]} 9. Nxc6 {[%clk 0:03:36.7]} 9... bxc6 {[%clk 0:03:28.3]} 10. Bxc6+ {[%clk 0:03:37.9]} 10... Bd7 {[%clk 0:03:24.5]} 11. Bxa8 {[%clk 0:03:41.2]} 11... Qh4 {[%clk 0:03:18.5]} 12. Nxd5 {[%clk 0:03:44.3]} 12... Qxh2# {[%clk 0:03:18.3]} 0-1

[Event "Live Chess"]
[Site "Chess.com"]
[Date "2010.12.29"]
[Round "-"]
[White "hipposcottimus"]
[Black "khwaja"]
[Result "0-1"]
[CurrentPosition "r3q1k1/2p3p1/p5np/2pPpb1n/P3R3/1BPQBrP1/5P1P/R5K1 w - -"]
[Timezone "UTC"]
[ECO "C51"]
[ECOUrl "https://www.chess.com/openings/Giuoco-Piano-Game-Evans-Accepted-Stone-Ware-Variation"]
[UTCDate "2010.12.29"]
[UTCTime "20:51:03"]
[WhiteElo "1403"]
[BlackElo "1583"]
[TimeControl "600+2"]
[Termination "khwaja won by resignation"]
[StartTime "20:51:03"]
[EndDate "2010.12.29"]
[EndTime "21:00:46"]
[Link "https://www.chess.com/game/live/82294927"]

1. e4 {[%clk 0:10:00]} 1... e5 {[%clk 0:10:00]} 2. Nf3 {[%clk 0:09:58.3]} 2... Nc6 {[%clk 0:10:00.8]} 3. Bc4 {[%clk 0:09:41.1]} 3... Bc5 {[%clk 0:10:00.6]} 4. b4 {[%clk 0:09:34.9]} 4... Bxb4 {[%clk 0:09:57.5]} 5. c3 {[%clk 0:09:25.5]} 5... Bd6 {[%clk 0:09:49]} 6. O-O {[%clk 0:09:18.6]} 6... Nf6 {[%clk 0:09:46.7]} 7. d3 {[%clk 0:09:13.2]} 7... h6 {[%clk 0:09:46.1]} 8. Nbd2 {[%clk 0:08:54]} 8... O-O {[%clk 0:09:46.1]} 9. d4 {[%clk 0:08:44.4]} 9... Qe8 {[%clk 0:09:41]} 10. d5 {[%clk 0:08:25.1]} 10... Ne7 {[%clk 0:09:39.1]} 11. Bb3 {[%clk 0:08:06.2]} 11... Ng6 {[%clk 0:09:37.7]} 12. Nc4 {[%clk 0:07:09]} 12... Bc5 {[%clk 0:09:25.8]} 13. g3 {[%clk 0:06:54.4]} 13... a6 {[%clk 0:09:26.1]} 14. a4 {[%clk 0:06:39.3]} 14... d6 {[%clk 0:09:25.8]} 15. Re1 {[%clk 0:06:19.3]} 15... Bg4 {[%clk 0:09:17.4]} 16. Qd3 {[%clk 0:06:02.6]} 16... Nh5 {[%clk 0:09:09.1]} 17. Na5 {[%clk 0:05:06.3]} 17... f5 {[%clk 0:09:00.6]} 18. Nxb7 {[%clk 0:04:55.5]} 18... fxe4 {[%clk 0:08:42.2]} 19. Rxe4 {[%clk 0:04:47.2]} 19... Rxf3 {[%clk 0:08:39.4]} 20. Be3 {[%clk 0:04:06.7]} 20... Bf5 {[%clk 0:08:15.6]} 21. Nxc5 {[%clk 0:03:56.9]} 21... dxc5 {[%clk 0:07:55.3]} 0-1

[Event "Live Chess"]
[Site "Chess.com"]
[Date "2010.12.29"]
[Round "-"]
[White "zbest28"]
[Black "hipposcottimus"]
[Result "0-1"]
[CurrentPosition "r1b2r1k/ppp2ppp/1b6/8/2nPN3/2P4P/PP4P1/R1B1R2K w - -"]
[Timezone "UTC"]
[ECO "C31"]
[ECOUrl "https://www.chess.com/openings/Kings-Gambit-Declined-Falkbeer-Countergambit"]
[UTCDate "2010.12.29"]
[UTCTime "20:43:55"]
[WhiteElo "1348"]
[BlackElo "1407"]
[TimeControl "300+5"]
[Termination "hipposcottimus won by resignation"]
[StartTime "20:43:55"]
[EndDate "2010.12.29"]
[EndTime "20:49:52"]
[Link "https://www.chess.com/game/live/82293115"]

1. e4 {[%clk 0:05:00]} 1... e5 {[%clk 0:05:00]} 2. f4 {[%clk 0:05:02.5]} 2... d5 {[%clk 0:05:03]} 3. fxe5 {[%clk 0:05:00.5]} 3... dxe4 {[%clk 0:05:03]} 4. Qe2 {[%clk 0:04:55.8]} 4... Qd5 {[%clk 0:05:00.5]} 5. Nc3 {[%clk 0:04:49.6]} 5... Qxe5 {[%clk 0:04:42.2]} 6. Qxe4 {[%clk 0:04:52.7]} 6... Nc6 {[%clk 0:04:39.5]} 7. Nf3 {[%clk 0:04:46.1]} 7... Qe6 {[%clk 0:04:33.2]} 8. Bc4 {[%clk 0:04:42.5]} 8... Qe7 {[%clk 0:04:30.1]} 9. O-O {[%clk 0:04:39.6]} 9... Nf6 {[%clk 0:04:33.3]} 10. Qxe7+ {[%clk 0:04:39.3]} 10... Bxe7 {[%clk 0:04:34.2]} 11. Re1 {[%clk 0:04:37.8]} 11... O-O {[%clk 0:04:38.3]} 12. d3 {[%clk 0:04:30.1]} 12... Bc5+ {[%clk 0:04:35.6]} 13. Kh1 {[%clk 0:04:31.7]} 13... Ng4 {[%clk 0:04:37.8]} 14. Ne4 {[%clk 0:03:49.3]} 14... Bb6 {[%clk 0:04:34.7]} 15. c3 {[%clk 0:03:32.7]} 15... Kh8 {[%clk 0:04:14.5]} 16. h3 {[%clk 0:03:34.1]} 16... Nge5 {[%clk 0:03:39.9]} 17. Nxe5 {[%clk 0:03:27.3]} 17... Nxe5 {[%clk 0:03:43.4]} 18. d4 {[%clk 0:03:25.9]} 18... Nxc4 {[%clk 0:03:46.5]} 0-1

[Event "Live Chess"]
[Site "Chess.com"]
[Date "2010.12.29"]
[Round "-"]
[White "hipposcottimus"]
[Black "anupamthepatzer"]
[Result "1-0"]
[CurrentPosition "5Qk1/P1p3p1/7p/2pP4/2q1p3/8/5PPP/R4R1K b - -"]
[Timezone "UTC"]
[ECO "C57"]
[ECOUrl "https://www.chess.com/openings/Italian-Game-Knight-Attack-Polerio-Defense"]
[UTCDate "2010.12.29"]
[UTCTime "20:27:58"]
[WhiteElo "1400"]
[BlackElo "1179"]
[TimeControl "240+12"]
[Termination "hipposcottimus won by resignation"]
[StartTime "20:27:58"]
[EndDate "2010.12.29"]
[EndTime "20:42:41"]
[Link "https://www.chess.com/game/live/82288116"]

1. e4 {[%clk 0:04:00]} 1... e5 {[%clk 0:04:00]} 2. Nf3 {[%clk 0:04:08.5]} 2... Nc6 {[%clk 0:04:01.2]} 3. Bc4 {[%clk 0:04:18.4]} 3... Nf6 {[%clk 0:04:09]} 4. Ng5 {[%clk 0:04:26.8]} 4... d5 {[%clk 0:04:16.5]} 5. exd5 {[%clk 0:04:34.4]} 5... Na5 {[%clk 0:04:25.2]} 6. Qe2 {[%clk 0:04:23.2]} 6... Nxc4 {[%clk 0:04:14.2]} 7. Qxc4 {[%clk 0:04:29.9]} 7... Qe7 {[%clk 0:04:22.3]} 8. Nc3 {[%clk 0:04:33.6]} 8... h6 {[%clk 0:04:29.6]} 9. Nge4 {[%clk 0:04:30.9]} 9... Nxe4 {[%clk 0:04:24.5]} 10. Nxe4 {[%clk 0:04:41.1]} 10... Bf5 {[%clk 0:04:26.9]} 11. d3 {[%clk 0:04:46.1]} 11... Bxe4 {[%clk 0:04:35]} 12. dxe4 {[%clk 0:04:56]} 12... Qf6 {[%clk 0:04:46.2]} 13. Be3 {[%clk 0:04:52.6]} 13... Rc8 {[%clk 0:04:49.1]} 14. Bxa7 {[%clk 0:04:57.9]} 14... Be7 {[%clk 0:04:47.4]} 15. Bc5 {[%clk 0:05:00.3]} 15... O-O {[%clk 0:04:54.6]} 16. O-O {[%clk 0:05:07.4]} 16... b6 {[%clk 0:04:51.4]} 17. Be3 {[%clk 0:05:16.8]} 17... Qd6 {[%clk 0:04:46.3]} 18. Qe2 {[%clk 0:04:40.8]} 18... Qb4 {[%clk 0:04:38]} 19. c4 {[%clk 0:04:38.5]} 19... Bc5 {[%clk 0:04:41.2]} 20. Bd2 {[%clk 0:04:46.2]} 20... Qxb2 {[%clk 0:04:48.6]} 21. Kh1 {[%clk 0:04:53]} 21... Bd4 {[%clk 0:04:41.8]} 22. a3 {[%clk 0:04:30]} 22... Ra8 {[%clk 0:04:35.7]} 23. Qd3 {[%clk 0:04:34]} 23... Bc5 {[%clk 0:03:38.1]} 24. a4 {[%clk 0:04:33.6]} 24... Qd4 {[%clk 0:03:43.9]} 25. Qe2 {[%clk 0:04:20.9]} 25... f5 {[%clk 0:03:33.5]} 26. Be3 {[%clk 0:04:26]} 26... Qc3 {[%clk 0:03:37.5]} 27. Rac1 {[%clk 0:04:35.9]} 27... Qa5 {[%clk 0:03:43.1]} 28. Bxc5 {[%clk 0:04:45.2]} 28... bxc5 {[%clk 0:03:49.4]} 29. exf5 {[%clk 0:04:48.7]} 29... Rxf5 {[%clk 0:03:59.2]} 30. Qe4 {[%clk 0:04:53.1]} 30... Raf8 {[%clk 0:04:04.9]} 31. Ra1 {[%clk 0:05:02.3]} 31... Qc3 {[%clk 0:04:12.9]} 32. a5 {[%clk 0:04:56]} 32... R5f6 {[%clk 0:04:09.3]} 33. a6 {[%clk 0:05:00.4]} 33... Ra8 {[%clk 0:04:13.5]} 34. a7 {[%clk 0:05:03.6]} 34... Qd4 {[%clk 0:04:12.5]} 35. Qc2 {[%clk 0:05:11.9]} 35... e4 {[%clk 0:04:01.9]} 36. Qa4 {[%clk 0:05:00.2]} 36... Rf7 {[%clk 0:03:41.7]} 37. Qc6 {[%clk 0:05:06.4]} 37... Qxc4 {[%clk 0:03:33.3]} 38. Qxa8+ {[%clk 0:05:12]} 38... Rf8 {[%clk 0:03:39]} 39. Qxf8+ {[%clk 0:05:21.3]} 1-0

[Event "Live Chess"]
[Site "Chess.com"]
[Date "2010.12.29"]
[Round "-"]
[White "Silverbllet"]
[Black "hipposcottimus"]
[Result "1-0"]
[CurrentPosition "8/8/6k1/p4p2/r2B1K2/N1P5/PP6/8 b - -"]
[Timezone "UTC"]
[ECO "C58"]
[ECOUrl "https://www.chess.com/openings/Italian-Game-Knight-Attack-Polerio-Bishop-Check-Line-6...Bd7-7.Qe2"]
[UTCDate "2010.12.29"]
[UTCTime "20:04:45"]
[WhiteElo "1465"]
[BlackElo "1400"]
[TimeControl "240+4"]
[Termination "Silverbllet won by resignation"]
[StartTime "20:04:45"]
[EndDate "2010.12.29"]
[EndTime "20:17:37"]
[Link "https://www.chess.com/game/live/82282118"]

1. e4 {[%clk 0:04:00]} 1... e5 {[%clk 0:04:00]} 2. Nf3 {[%clk 0:04:02.4]} 2... Nc6 {[%clk 0:03:56.9]} 3. Bc4 {[%clk 0:04:04.9]} 3... Nf6 {[%clk 0:03:59.2]} 4. Ng5 {[%clk 0:04:04]} 4... d5 {[%clk 0:04:01.9]} 5. exd5 {[%clk 0:04:05.5]} 5... Na5 {[%clk 0:04:04.4]} 6. Bb5+ {[%clk 0:04:07.6]} 6... Bd7 {[%clk 0:04:06.5]} 7. Qe2 {[%clk 0:03:57.9]} 7... Bd6 {[%clk 0:03:56.2]} 8. d4 {[%clk 0:03:48.9]} 8... O-O {[%clk 0:03:52.8]} 9. dxe5 {[%clk 0:03:02.7]} 9... Re8 {[%clk 0:03:48.8]} 10. O-O {[%clk 0:02:55.2]} 10... Bxe5 {[%clk 0:03:48.4]} 11. Qd3 {[%clk 0:02:43.2]} 11... Bxb5 {[%clk 0:03:17.7]} 12. Qxb5 {[%clk 0:02:42.1]} 12... c6 {[%clk 0:03:19.3]} 13. dxc6 {[%clk 0:02:41.9]} 13... Nxc6 {[%clk 0:03:16.6]} 14. Qxb7 {[%clk 0:02:42.4]} 14... Nd4 {[%clk 0:03:15.3]} 15. Na3 {[%clk 0:02:39.2]} 15... Re7 {[%clk 0:02:27.1]} 16. Qa6 {[%clk 0:02:30.8]} 16... Ng4 {[%clk 0:02:15.1]} 17. h3 {[%clk 0:02:12.2]} 17... f6 {[%clk 0:02:14.6]} 18. Nf3 {[%clk 0:01:40.8]} 18... Nxf3+ {[%clk 0:02:05]} 19. gxf3 {[%clk 0:01:42.9]} 19... Nh2 {[%clk 0:02:03.1]} 20. f4 {[%clk 0:01:32.4]} 20... Nxf1 {[%clk 0:01:48]} 21. fxe5 {[%clk 0:01:33.6]} 21... Rxe5 {[%clk 0:01:33.7]} 22. Qxf1 {[%clk 0:01:33.1]} 22... f5 {[%clk 0:00:51.2]} 23. Bf4 {[%clk 0:01:15.2]} 23... Re6 {[%clk 0:00:45]} 24. Qc4 {[%clk 0:01:09.9]} 24... Qe7 {[%clk 0:00:34.6]} 25. Re1 {[%clk 0:01:00.7]} 25... Re8 {[%clk 0:00:34.3]} 26. c3 {[%clk 0:00:21.4]} 26... Kh8 {[%clk 0:00:31.9]} 27. Rxe6 {[%clk 0:00:20.5]} 27... Qxe6 {[%clk 0:00:30.9]} 28. Qxe6 {[%clk 0:00:22.9]} 28... Rxe6 {[%clk 0:00:34.2]} 29. Kf1 {[%clk 0:00:25.7]} 29... Ra6 {[%clk 0:00:37.8]} 30. Ke2 {[%clk 0:00:24.9]} 30... h6 {[%clk 0:00:40.5]} 31. Kf3 {[%clk 0:00:26.6]} 31... g5 {[%clk 0:00:41.4]} 32. Be3 {[%clk 0:00:23.8]} 32... Kh7 {[%clk 0:00:44.7]} 33. Bd4 {[%clk 0:00:26.1]} 33... Kg6 {[%clk 0:00:45.6]} 34. Kg3 {[%clk 0:00:17.4]} 34... Ra4 {[%clk 0:00:37.6]} 35. f4 {[%clk 0:00:18.2]} 35... a6 {[%clk 0:00:33.7]} 36. h4 {[%clk 0:00:18.5]} 36... a5 {[%clk 0:00:19.5]} 37. fxg5 {[%clk 0:00:18.8]} 37... hxg5 {[%clk 0:00:22.5]} 38. hxg5 {[%clk 0:00:14.7]} 38... Kxg5 {[%clk 0:00:25.1]} 39. Kf3 {[%clk 0:00:14.9]} 39... Kg6 {[%clk 0:00:27.9]} 40. Kf4 {[%clk 0:00:16.6]} 1-0

[Event "Live Chess"]
[Site "Chess.com"]
[Date "2010.12.29"]
[Round "-"]
[White "hipposcottimus"]
[Black "Silverbllet"]
[Result "0-1"]
[CurrentPosition "r3k2r/ppp2pp1/1bn1Pn2/6N1/2B5/8/P4PPq/RN1Q1RK1 w kq -"]
[Timezone "UTC"]
[ECO "C51"]
[ECOUrl "https://www.chess.com/openings/Giuoco-Piano-Game-Evans-Accepted-McDonnell-Defense-6.O-O"]
[UTCDate "2010.12.29"]
[UTCTime "20:00:28"]
[WhiteElo "1407"]
[BlackElo "1444"]
[TimeControl "240+4"]
[Termination "Silverbllet won by checkmate"]
[StartTime "20:00:28"]
[EndDate "2010.12.29"]
[EndTime "20:03:36"]
[Link "https://www.chess.com/game/live/82281137"]

1. e4 {[%clk 0:04:00]} 1... e5 {[%clk 0:04:00]} 2. Nf3 {[%clk 0:04:01.9]} 2... Nc6 {[%clk 0:04:02.3]} 3. Bc4 {[%clk 0:04:03.5]} 3... Bc5 {[%clk 0:03:57.4]} 4. b4 {[%clk 0:04:03]} 4... Bxb4 {[%clk 0:03:53.5]} 5. c3 {[%clk 0:04:05.7]} 5... Bc5 {[%clk 0:03:53.7]} 6. O-O {[%clk 0:04:07.6]} 6... Nf6 {[%clk 0:03:54]} 7. d4 {[%clk 0:04:10.1]} 7... exd4 {[%clk 0:03:47.3]} 8. cxd4 {[%clk 0:04:12.2]} 8... Bb6 {[%clk 0:03:46.6]} 9. Bg5 {[%clk 0:03:50.3]} 9... h6 {[%clk 0:03:40.5]} 10. e5 {[%clk 0:03:44.8]} 10... hxg5 {[%clk 0:03:42.7]} 11. Nxg5 {[%clk 0:03:46.9]} 11... d5 {[%clk 0:03:27]} 12. exd6 {[%clk 0:03:46.8]} 12... Be6 {[%clk 0:03:28]} 13. d5 {[%clk 0:03:36.7]} 13... Qxd6 {[%clk 0:03:23.8]} 14. dxe6 {[%clk 0:03:26.5]} 14... Qxh2# {[%clk 0:03:24.8]} 0-1

[Event "Live Chess"]
[Site "Chess.com"]
[Date "2010.12.29"]
[Round "-"]
[White "cataphractus"]
[Black "hipposcottimus"]
[Result "1-0"]
[CurrentPosition "r1b1r1k1/pp3Qpp/2p5/8/3P2nq/1BP5/P1P2PPP/R4RK1 b - -"]
[Timezone "UTC"]
[ECO "C55"]
[ECOUrl "https://www.chess.com/openings/Italian-Game-Two-Knights-Modern-Bishops-Opening-4...d5-5.exd5-Nxd5"]
[UTCDate "2010.12.29"]
[UTCTime "19:56:22"]
[WhiteElo "1481"]
[BlackElo "1415"]
[TimeControl "600"]
[Termination "cataphractus won by resignation"]
[StartTime "19:56:22"]
[EndDate "2010.12.29"]
[EndTime "19:59:36"]
[Link "https://www.chess.com/game/live/82279810"]

1. e4 {[%clk 0:10:00]} 1... e5 {[%clk 0:10:00]} 2. Nf3 {[%clk 0:09:57.1]} 2... Nc6 {[%clk 0:09:58.1]} 3. Bc4 {[%clk 0:09:53.7]} 3... Nf6 {[%clk 0:09:55.5]} 4. d3 {[%clk 0:09:51.9]} 4... d5 {[%clk 0:09:53.8]} 5. exd5 {[%clk 0:09:48.6]} 5... Nxd5 {[%clk 0:09:52]} 6. Nc3 {[%clk 0:09:40.7]} 6... Bb4 {[%clk 0:09:46]} 7. Bd2 {[%clk 0:09:32.3]} 7... Bxc3 {[%clk 0:09:33.7]} 8. Bxc3 {[%clk 0:09:30]} 8... O-O {[%clk 0:09:33.3]} 9. Nxe5 {[%clk 0:09:23.5]} 9... Nxc3 {[%clk 0:09:31.1]} 10. bxc3 {[%clk 0:09:20]} 10... Nxe5 {[%clk 0:09:25.8]} 11. Bb3 {[%clk 0:09:08.3]} 11... Re8 {[%clk 0:09:23.2]} 12. O-O {[%clk 0:09:06.6]} 12... c6 {[%clk 0:08:39.3]} 13. d4 {[%clk 0:08:55.3]} 13... Ng4 {[%clk 0:08:26]} 14. Qf3 {[%clk 0:08:50.9]} 14... Qh4 {[%clk 0:08:08.3]} 15. Qxf7+ {[%clk 0:08:45.8]} 1-0